[Event "Ceara-ch 2019"]
[Site "Fortaleza"]
[Date "2019.11.30"]
[Round "7.5"]
[White "Lima, Alan Elkinson Lopes "]
[Black "Silveira, Jose Wanderley Macie"]
[Result "1/2-1/2"]
[ECO "D45"]
[WhiteElo "1928"]
[BlackElo "1762"]
[Annotator "NA RC"]
[PlyCount "33"]
[EventDate "2019.11.17"]
[EventType "tourn"]
[EventCountry "BRA"]
[SourceTitle "playchess.com"]
[Source "ChessBase"]
[SourceQuality "1"]
[TimeControl "5400+30"]

{[%evp 8,33,27,19,12,24,12,-17,-6,-8,-12,-21,0,-45,-41,-45,-34,-63,-37,-36,15,7,0,8,2,12,0,-17]} 1. Nf3 {[%emt 0:00:00]} Nf6 {[%emt 0:01:12]} 2. d4 {[%emt 0:00:00]} d5 {[%emt 0:00:02]} 3. c4 {[%emt 0:00:00]} c6 {[%emt 0:00:03]} 4. e3 {[%emt 0:00:21]} Nbd7 {[%emt 0:00:05]} 5. Nc3 {[%emt 0:00:12]} e6 {[%emt 0:00:05]} 6. Qc2 {[%emt 0:00:41]} a6 {[%emt 0:00:25]} 7. Bd3 {[%emt 0:03:52]} dxc4 {[%emt 0:00:03]} 8. Bxc4 {[%emt 0:00:09]} b5 {[%emt 0:00:07]} 9. Be2 {[%emt 0:00:38]} c5 {[%emt 0:02:38]} 10. O-O {[%emt 0:01:21]} Bb7 {[%emt 0:00:12]} 11. Rd1 {[%emt 0:00:55]} Rc8 {[%emt 0:02:02]} 12. Qd2 {[%emt 0:07:20]} Bd6 {[%emt 0:08:22]} 13. a3 {[%emt 0:04:13]} Qe7 {[%emt 0:01:03]} 14. dxc5 {[%emt 0:00:42]} Bxc5 {[%emt 0:00:17]} 15. b4 {[%emt 0:00:10]} Bb6 {[%emt 0:01:55]} 16. Bb2 {[%emt 0:01:54]} O-O {[%emt 0:01:03]} 17. Qd6 $11 {[%emt 0:02:02]} 1/2-1/2

[Event "Ceara-ch 2019"]
[Site "Fortaleza"]
[Date "2019.12.01"]
[Round "8.1"]
[White "Da Justa, Saulo Freitas"]
[Black "Silveira, Jose Wanderley Macie"]
[Result "1-0"]
[ECO "D02"]
[WhiteElo "1911"]
[BlackElo "1762"]
[Annotator "NA RC"]
[PlyCount "57"]
[EventDate "2019.11.17"]
[EventType "tourn"]
[EventCountry "BRA"]
[SourceTitle "playchess.com"]
[Source "ChessBase"]
[SourceQuality "1"]
[TimeControl "5400+30"]

1. d4 {[%emt 0:00:00]} Nf6 {[%emt 0:41:34]} 2. Nf3 {[%emt 0:00:13]} d5 {[%emt 0:00:06]} 3. c3 {[%emt 0:01:22]} c6 {[%emt 0:00:29]} 4. Qc2 {[%emt 0:01:10]} Nbd7 {[%emt 0:00:09]} 5. Bf4 {[%emt 0:00:14]} g6 {[%emt 0:01:13]} 6. Nbd2 {[%emt 0:00:15]} Bg7 {[%emt 0:00:07]} 7. e3 {[%emt 0:01:26]} a5 {[%emt 0:00:32]} 8. Be2 {[%emt 0:01:29]} a4 {[%emt 0:00:07]} 9. O-O {[%emt 0:00:29]} Nh5 {[%emt 0:00:16]} 10. Bg5 {[%emt 0:01:49]} h6 {[%emt 0:05:28]} 11. Bh4 {[%emt 0:00:39]} g5 {[%emt 0:01:42]} 12. Ne1 {[%emt 0:05:10]} Ndf6 {[%emt 0:05:37]} 13. Bg3 {[%emt 0:01:56]} Nxg3 {[%emt 0:00:47]} 14. fxg3 {[%emt 0:02:09]} Ng4 {[%emt 0:00:16]} 15. Qd3 {[%emt 0:02:03]} e5 {[%emt 0:00:07] [#]} 16. h3 $1 {[%emt 1:17:36]} Nf6 {[%emt 0:03:23]} 17. dxe5 {[%emt 0:00:00]} Nd7 {[%emt 0:00:05]} 18. e6 {[%emt 0:00:00]} Ne5 {[%emt 0:02:54]} 19. exf7+ {[%emt 0:00:00]} Kf8 {[%emt 0:00:04]} 20. Qb1 {[%emt 0:00:00]} (20. Qc2 $16) 20... Qb6 {[%emt 0:02:33]} 21. Nc2 $14 {[%emt 0:00:00]} ({White should play} 21. Bh5 $16) 21... Qc5 {[%emt 0:03:01]} 22. Nd4 {[%emt 0:00:00]} a3 {[%emt 0:01:35]} 23. Qc2 {[%emt 0:00:00]} axb2 {[%emt 0:01:45]} 24. Qxb2 {[%emt 0:00:00]} Nc4 {[%emt 0:00:24]} 25. Nxc4 {[%emt 0:00:00]} dxc4 {[%emt 0:00:03]} 26. Bg4 {[%emt 0:00:00]} Bxg4 {[%emt 0:03:39]} 27. Qxb7 {[%emt 0:00:00]} Ra7 {[%emt 0:00:35]} 28. Qb8+ {[%emt 0:00:00]} Ke7 {[%emt 0:01:51]} 29. Qxh8 {[%emt 0:00:00]} 1-0

[Event "Ceara-ch 2019"]
[Site "Fortaleza"]
[Date "2019.12.01"]
[Round "9.1"]
[White "Lima, Helio Viana Correia"]
[Black "Da Justa, Saulo Freitas"]
[Result "1-0"]
[ECO "D02"]
[WhiteElo "1950"]
[BlackElo "1911"]
[Annotator "NA RC"]
[PlyCount "95"]
[EventDate "2019.11.17"]
[EventType "tourn"]
[EventCountry "BRA"]
[SourceTitle "playchess.com"]
[Source "ChessBase"]
[SourceQuality "1"]
[TimeControl "5400+30"]

1. d4 {[%emt 0:01:39]} d5 {[%emt 0:00:16]} 2. Bf4 {[%emt 0:00:07]} e6 {[%emt 0:00:43]} 3. e3 {[%emt 0:00:11]} Nf6 {[%emt 0:00:26]} 4. c3 {[%emt 0:00:17]} Bd6 {[%emt 0:00:14]} 5. Bg3 {[%emt 0:00:09]} O-O {[%emt 0:00:06]} 6. Nd2 {[%emt 0:00:22]} c5 {[%emt 0:01:40]} 7. Bd3 {[%emt 0:00:09]} Nc6 {[%emt 0:06:28]} 8. Ngf3 {[%emt 0:00:08]} h6 {[%emt 0:02:01] D02: 1 d4 d5 2 Nf3 sidelines, including 2...Nf6 3 g3 and 2...Nf6 3 Bf4} (8... Qe7 9. Ne5 Nd7 10. Nxd7 Qxd7 11. Bxd6 Qxd6 12. dxc5 Qxc5 13. Bxh7+ Kxh7 14. Qh5+ Kg8 15. Ne4 g6 {½-½ (15) Riazantsev,A (2645)-Popov,I (2604) Moscow 2019}) 9. Qe2 {[%emt 0:00:27]} Re8 {[%emt 0:02:08]} 10. Ne5 {[%emt 0:00:15]} Qe7 {[%emt 0:06:17]} 11. f4 $146 {[%emt 0:00:27]} ({Predecessor:} 11. e4 Nd7 12. Nxd7 cxd4 13. e5 dxc3 14. bxc3 Ba3 15. Nf6+ gxf6 16. Qg4+ Kh8 17. Qh5 f5 18. Bf4 Qf8 19. Bxh6 Qg8 20. Bf8+ {1-0 (20) Gomez Ledo,R (2442)-Cuevas Fernandez,J (2128) Lisbon 2018}) 11... Nd7 {[%emt 0:02:21]} 12. Qh5 {[%emt 0:00:21]} c4 {[%emt 0:12:19]} 13. Bc2 {[%emt 0:00:03]} f5 {[%emt 1:01:31]} 14. Bh4 {[%emt 0:00:24]} Qf8 {[%emt 0:00:00]} 15. g4 {[%emt 0:00:41]} Bxe5 {[%emt 0:00:00]} 16. dxe5 {[%emt 0:00:43]} Qf7 {[%emt 0:00:00]} 17. Qxf7+ {[%emt 0:00:52]} Kxf7 {[%emt 0:00:00]} 18. gxf5 {[%emt 0:01:05]} exf5 {[%emt 0:00:00]} 19. O-O-O {[%emt 0:07:44]} Nc5 {[%emt 0:00:00]} 20. Nf3 {[%emt 0:00:50]} Be6 {[%emt 0:00:00]} 21. Rhg1 {[%emt 0:02:08]} b5 {[%emt 0:00:00]} 22. Be1 {[%emt 0:02:05]} a5 {[%emt 0:00:00]} 23. Nh4 {[%emt 0:01:46]} Ne7 {[%emt 0:00:00]} 24. Rd2 {[%emt 0:01:31]} g6 {[%emt 0:00:00]} 25. Rdg2 {[%emt 0:00:22]} Rg8 {[%emt 0:00:00]} 26. Nf3 {[%emt 0:00:38]} Ne4 {[%emt 0:00:00]} 27. Nd4 {[%emt 0:00:39]} Bd7 {[%emt 0:00:00]} 28. Bh4 {[%emt 0:03:21]} Ra6 {[%emt 0:00:00]} (28... Rae8 $142 29. a3 Nc8) 29. Bxe7 {[%emt 0:08:06]} Kxe7 {[%emt 0:00:00]} 30. Bxe4 {[%emt 0:01:33]} dxe4 {[%emt 0:00:00]} 31. h4 {[%emt 0:00:14]} b4 {[%emt 0:00:00] [#]} 32. e6 $1 {[%emt 0:09:55]} Be8 {[%emt 0:00:15] [#]} 33. Nxf5+ $1 {[%emt 0:00:41] Double Attack, Pin} Kxe6 {[%emt 0:00:51]} 34. Nxh6 {[%emt 0:01:03]} Rf8 {[%emt 0:00:42]} 35. Ng4 {[%emt 0:01:00]} Rh8 $18 {[%emt 0:01:40]} 36. Ne5 {[%emt 0:09:08]} Rxh4 {[%emt 0:02:33]} 37. Rxg6+ {[%emt 0:15:57]} Bxg6 {[%emt 0:00:02]} 38. Rxg6+ {[%emt 0:00:03]} Kf5 {[%emt 0:00:28]} 39. Rxa6 {[%emt 0:00:15]} Rh1+ {[%emt 0:00:05]} 40. Kd2 {[%emt 0:00:17]} Rh2+ {[%emt 0:00:25]} 41. Ke1 {[%emt 0:02:40]} Rh1+ {[%emt 0:00:33]} 42. Kf2 {[%emt 0:03:38]} Rh2+ {[%emt 0:00:38]} 43. Kg3 {[%emt 0:27:36]} bxc3 {[%emt 0:00:39]} 44. bxc3 {[%emt 0:00:00]} Rh1 {[%emt 0:01:58]} 45. Nxc4 {[%emt 0:00:00]} Rc1 {[%emt 0:00:45]} 46. Nd6+ {[%emt 0:00:00]} Ke6 {[%emt 0:00:02]} 47. Nxe4+ {[%emt 0:00:00]} Kf5 {[%emt 0:00:08]} 48. Kf3 {[%emt 0:00:00]} 1-0